Cogmind - Beta 11.1 @@@ ROGUE MODE // 2022.07.23 @ 11:28:15 Player: Crimson_Fox Result: Destroyed by RK-I0S(z) with Zionite Laser-S Performance ------------- Evolutions (1) 500 Regions Visited (5) 1000 Robots Destroyed (12) 60 Value Destroyed (170) 170 Prototype IDs (2) 40 Alien Tech Used (0) 0 Bonus (600) 600 TOTAL SCORE: 2370 Bonus ------- Met Imprinter 300 Was Imprinted 300 Cogmind --------- Core Integrity 0/400 Matter 265/300 Energy 300/300 System Corruption 0% Temperature Cool (33) Movement Rolling (80) Location -7/Deep Caves Parts ------- > --- POWER (1) -------- (None) > --- PROPULSION (3) --- Wheel > --- UTILITY (2) ------ Small Storage Unit Compact Battery > --- WEAPON (3) ------- Katana > --- INVENTORY (8) ---- Surge Thruster Improved Medium Armor Plating Authchip [Propulsion] Hacking Drone Bay (1/1) Phasing AFG Mining Laser CR-A16's Pointy Stick Peak State ------------ > --- POWER ------------ Ion Engine > --- PROPULSION ------- Wheel Wheel Wheel > --- UTILITY ---------- Small Storage Unit Phasing AFG > --- WEAPON ----------- EM Pulse Gun Medium Laser Light EM Pulse Cannon > --- INVENTORY -------- Surge Thruster Compact Battery Improved Medium Armor Plating Authchip [Propulsion] Hacking Drone Bay Mining Laser Katana CR-A16's Pointy Stick [Rating: 25] Favorites ----------- Power Ion Engine Engine Ion Engine Propulsion Wheel Wheel Wheel Flight Unit Surge Thruster Utility Small Storage Unit Device Improved Terrain Scanner Storage Small Storage Unit Weapon Medium Laser Energy Gun Medium Laser Energy Cannon Light EM Pulse Cannon Ballistic Gun Battle Rifle Ballistic Cannon Improved Light Cannon Special Weapon Mining Laser Slashing Weapon Katana Build | -11 -10 -9 -9 -7 -7 ------- Run | Scr Mat Mat Min Zio Dee Slots Evolved 2 | . . 2 . . . Power . | . . . . . . Propulsion 1 | . . 1 . . . Utility . | . . . . . . Weapon 1 | . . 1 . . . Parts Attached 41 | 7 . 11 12 10 1 Power 2 | 1 . . 1 . . Engine 2 | 1 . . 1 . . Core . | . . . . . . Reactor . | . . . . . . Propulsion 12 | 2 . 4 5 1 . Treads . | . . . . . . Leg . | . . . . . . Wheel 8 | 2 . 1 4 1 . Hover . | . . . . . . Flight 4 | . . 3 1 . . Utility 11 | 2 . 2 2 5 . Device 6 | 1 . 2 1 2 . Storage 5 | 1 . . 1 3 . Processor . | . . . . . . Hackware . | . . . . . . Protection . | . . . . . . Artifact . | . . . . . . Weapon 16 | 2 . 5 4 4 1 Energy Gun 7 | 1 . 1 3 2 . Energy Cannon 2 | . . 1 1 . . Ballistic Gun 2 | 1 . . . 1 . Ballistic Cannon 1 | . . 1 . . . Launcher . | . . . . . . Special Weapon 2 | . . 2 . . . Impact Weapon . | . . . . . . Slashing Weapon 2 | . . . . 1 1 Piercing Weapon . | . . . . . . Special Melee Weapon . | . . . . . . Unidentified Prototypes 2 | . . . . 2 . Parts Lost 11 | . . . 5 . 6 Power 1 | . . . . . 1 Propulsion 4 | . . . 2 . 2 Utility 2 | . . . 2 . . Weapon 4 | . . . 1 . 3 Highest Loss Streak 6 | . . . 5 . 6 To Critical Strikes . | . . . . . . Average Slot Usage (%) 95 | . 100 92 72 100 95 Engine 11 | . 14 11 10 11 10 Wheel 30 | . 28 21 19 33 31 Flight 1 | . . 11 9 . . Device 2 | . 14 12 5 1 . Storage 18 | . 14 8 6 20 22 Energy Gun 15 | . 14 16 13 16 10 Energy Cannon 8 | . . . 4 11 9 Ballistic Gun 5 | . 14 1 . 5 9 Naked Turns . | . . . . . . Heaviest Build 19 | 15 15 19 18 19 19 Greatest Support 36 | 26 26 36 36 30 30 Greatest Overweight (x) 6 | . . 6 . . . Average Overweight (x) . | . . . . . . Largest Inventory Capacity 8 | 8 8 8 8 8 8 Average Capacity 7 | 7 8 7 6 8 8 Most Carried 8 | 8 8 8 8 8 8 Average Carried 7 | 4 7 6 5 7 7 Final Capacity 8 | 8 8 5 8 8 8 Final Carried 8 | 8 8 5 7 8 7 Class Distribution -------------------- 70% | Scavenger-Gunner 10% | Mutant 8% | Scavenger-Skirmisher 6% | Sprinter Dominant Class ---------------- Mutant | -10/Materials Skirmisher | -9/Materials Sprinter | -9/Mines Scavenger-Gunner | -7/Zion Scavenger-Gunner | -7/Deep Caves Resources | -11 -10 -9 -9 -7 -7 ----------- Run | Scr Mat Mat Min Zio Dee Matter Collected 544 | 246 42 20 167 69 . Remotely . | . . . . . . Salvage Created 392 | 89 . . 303 . . Parts 24 | 6 . 1 17 . . Haulers Intercepted . | . . . . . . Recyclers Shooed . | . . . . . . Parts Field Recycled . | . . . . . . Retrieved Matter . | . . . . . . Parts Self-Destructed . | . . . . . . Prevented . | . . . . . . Kills | -11 -10 -9 -9 -7 -7 ------- Run | Scr Mat Mat Min Zio Dee Combat Hostiles Destroyed 3 | . . . 3 . . Guns 1 | . . . 1 . . Cannons 1 | . . . 1 . . AOE 1 | . . . 1 . . Classes Destroyed 7 | 2 . 1 4 . . Worker 2 | . . . 2 . . Builder 1 | . . . 1 . . Tunneler 2 | 1 . . 1 . . Recycler 3 | 1 . . 2 . . Watcher 1 | . . 1 . . . Grunt 2 | . . . 2 . . Duelist 1 | . . . 1 . . Best Kill Streak 6 | 2 . 1 6 . . Combat Bots Only 2 | . . . 2 . . Max Kills in Single Turn 3 | 1 . 1 3 . . Gunslinging . | . . . . . . Exploded 1 | . . . 1 . . Melee . | . . . . . . Uniques/NPCs Destroyed . | . . . . . . Combat | -11 -10 -9 -9 -7 -7 -------- Run | Scr Mat Mat Min Zio Dee Damage Taken 1292 | . 17 18 484 . 773 Core 416 | . . . 157 . 259 Absorbed by Shields . | . . . . . . Core Remaining (%) 100 | 100 100 . . . . Volleys Fired 37 | 4 2 1 25 . 5 Largest 3 | 2 2 1 3 . 2 Hottest 136 | 70 70 100 136 . 75 Shots Fired 49 | 8 4 1 29 . 7 Gun 39 | 8 4 . 20 . 7 Cannon 2 | . . . 2 . . Launcher . | . . . . . . Special 8 | . . 1 7 . . Kinetic 8 | 4 2 . . . 2 Thermal 29 | 4 2 1 17 . 5 Explosive . | . . . . . . Electromagnetic 12 | . . . 12 . . Robot Hit Streak 8 | 4 6 1 8 . 5 Robot Miss Streak 2 | 1 1 . 2 . 1 Penetration Max . | . . . . . . Secondary Targets . | . . . . . . Shots Hit Robots 38 | 7 3 1 20 . 7 Core Hits 16 | 3 . 1 12 . . Critical Kills . | . . . . . . Critical Parts Destroyed . | . . . . . . Critical Strikes . | . . . . . . Melee Attacks 3 | . . . . 2 1 Impact . | . . . . . . Slashing 3 | . . . . 2 1 Piercing . | . . . . . . Sneak Attacks . | . . . . . . Combat Hostiles . | . . . . . . Follow-up Attacks . | . . . . . . Damage Inflicted 708 | 84 41 24 448 . 111 Guns 391 | 84 41 . 191 . 75 Cannons 44 | . . . 44 . . Explosions 93 | . . . 93 . . Melee 36 | . . . . . 36 Ramming . | . . . . . . Kinetic 73 | 32 29 . . . 12 Thermal 443 | 52 12 24 292 . 63 Explosive . | . . . . . . Electromagnetic 156 | . . . 156 . . Impact . | . . . . . . Slashing 36 | . . . . . 36 Piercing . | . . . . . . Highest Corruption . | . . . . . . Average Corruption . | . . . . . . Corruption Purged . | . . . . . . Corruption Blocked . | . . . . . . Overload Shots . | . . . . . . Overflow Damage 3 | . . . 3 . . Projectiles 3 | . . . 3 . . Explosions . | . . . . . . Melee . | . . . . . . Knockbacks . | . . . . . . Impact . | . . . . . . Kinetic . | . . . . . . Secondary . | . . . . . . Self-Inflicted Damage 23 | . . . 23 . . Shots 1 | . . . 1 . . Rammed . | . . . . . . Targets Rammed . | . . . . . . Kicked . | . . . . . . Crushed . | . . . . . . Highest Temperature 86 | 18 9 . 86 . 77 Average Temperature 23 | 8 6 . 29 . 34 Received Heat Transfer 333 | . 9 . 108 . 216 Siege Activations . | . . . . . . Robots Corrupted . | . . . . . . Combat Hostiles . | . . . . . . Parts Fried . | . . . . . . Impact Corruptions . | . . . . . . Robots Melted . | . . . . . . Combat Hostiles . | . . . . . . Parts Melted . | . . . . . . Heat Transferred 805 | 148 37 50 525 . 45 Parts Sabotaged . | . . . . . . Parts Stolen . | . . . . . . Parts Stripped . | . . . . . . Power Chain Reactions 1 | . . . 1 . . Missiles Intercepted . | . . . . . . Alert | -11 -10 -9 -9 -7 -7 ------- Run | Scr Mat Mat Min Zio Dee Peak Influence 102 | 10 51 58 102 . . Initial 22 | . 6 21 22 . . Average 46 | 3 21 25 83 . . Maximum Alert Level . | . . . . . . Low Security (%) 100 | 100 100 100 100 . . Level 1 . | . . . . . . Level 2 . | . . . . . . Level 3 . | . . . . . . Level 4 . | . . . . . . Level 5 . | . . . . . . High Security . | . . . . . . Max Security . | . . . . . . Squads Dispatched 1 | . 1 . . . . Investigation . | . . . . . . Extermination . | . . . . . . Reinforcement 1 | . 1 . . . . Assault . | . . . . . . Garrison . | . . . . . . Intercept . | . . . . . . Searches Triggered . | . . . . . . Construction Impeded . | . . . . . . Haulers Reinforced . | . . . . . . Active Scanning Responses . | . . . . . . Cargo Convoy Interrupts . | . . . . . . Stealth | -11 -10 -9 -9 -7 -7 --------- Run | Scr Mat Mat Min Zio Dee Distress Signals 1 | . . 1 . . . Communications Jammed . | . . . . . . Distress Signals . | . . . . . . Times Spotted 15 | . 6 3 3 . 3 Peak Tracking Total 5 | . 4 5 3 . 3 Tactical Retreats 1 | . 1 . . . . Traps | -11 -10 -9 -9 -7 -7 ------- Run | Scr Mat Mat Min Zio Dee Traps Triggered . | . . . . . . Indirectly . | . . . . . . Trap Hack Attempts . | . . . . . . Triggered . | . . . . . . Disarmed . | . . . . . . Reprogrammed . | . . . . . . Reused . | . . . . . . Traps Extracted . | . . . . . . Installed . | . . . . . . Triggered . | . . . . . . Machines | -11 -10 -9 -9 -7 -7 ---------- Run | Scr Mat Mat Min Zio Dee Machines Disabled . | . . . . . . Max in Single Turn . | . . . . . . Machines Sabotaged . | . . . . . . Garrisons Compromised . | . . . . . . Overloaded Fab Kills . | . . . . . . Hacking | -11 -10 -9 -9 -7 -7 --------- Run | Scr Mat Mat Min Zio Dee Machines Accessed 1 | . . 1 . . . Terminals 1 | . . 1 . . . Fabricators . | . . . . . . Repair Stations . | . . . . . . Recycling Units . | . . . . . . Scanalyzers . | . . . . . . Garrison Access . | . . . . . . Total Hacks 4 | . . 4 . . . Successful 1 | . . 1 . . . Failed 3 | . . 3 . . . Catastrophic . | . . . . . . Database Lockouts . | . . . . . . Manual 8 | . . . . 8 . Terminals 4 | . . 4 . . . Fabricators . | . . . . . . Repair Stations . | . . . . . . Recycling Units . | . . . . . . Scanalyzers . | . . . . . . Garrison Access . | . . . . . . Terminal Hacks 1 | . . 1 . . . Locate Traps 1 | . . 1 . . . Fabricator Hacks . | . . . . . . Repair Station Hacks . | . . . . . . Recycling Unit Hacks . | . . . . . . Scanalyzer . | . . . . . . Garrison Access Hacks . | . . . . . . Unauthorized Hacks . | . . . . . . Terminals . | . . . . . . Fabricators . | . . . . . . Repair Stations . | . . . . . . Recycling Units . | . . . . . . Scanalyzers . | . . . . . . Garrison Access . | . . . . . . Data Cores Recovered . | . . . . . . Used . | . . . . . . Hacking Detections 1 | . . 1 . . . Full Trace Events . | . . . . . . Feedback Events . | . . . . . . Feedback Blocked . | . . . . . . Robot Schematics Acquired 4 | . . . . 4 . Robots Built . | . . . . . . Authchips . | . . . . . . Time . | . . . . . . Total Robot Build Rating . | . . . . . . Part Schematics Acquired 15 | . . . . 15 . Parts Built . | . . . . . . Authchips . | . . . . . . Time . | . . . . . . Total Part Build Rating . | . . . . . . Parts Repaired . | . . . . . . Time . | . . . . . . Parts Recycled . | . . . . . . Recycled Matter . | . . . . . . Retrieved Matter . | . . . . . . Retrieved Components . | . . . . . . Parts Scanalyzed . | . . . . . . Part Schematics Acquired . | . . . . . . Parts Damaged . | . . . . . . Bothacking | -11 -10 -9 -9 -7 -7 ------------ Run | Scr Mat Mat Min Zio Dee Used RIF Installer . | . . . . . . Robots Hacked . | . . . . . . Non-combat . | . . . . . . Combat . | . . . . . . Robot Hacks Applied . | . . . . . . Relay Couplers Released . | . . . . . . Fabnet Peak Effective % . | . . . . . . Robots Rewired . | . . . . . . Allies Hacked . | . . . . . . Hacks Repelled . | . . . . . . Allies | -11 -10 -9 -9 -7 -7 -------- Run | Scr Mat Mat Min Zio Dee Total Allies 5 | . . . 1 4 . Largest Group 4 | . . . 1 4 3 Highest-Rated Group 156 | . . . 31 156 116 Highest-Rated Ally 40 | . . . 31 40 39 Total Orders . | . . . . . . Ally Attacks . | . . . . . . Total Damage . | . . . . . . Kills . | . . . . . . Allies Corrupted . | . . . . . . Allies Melted . | . . . . . . Intel | -11 -10 -9 -9 -7 -7 ------- Run | Scr Mat Mat Min Zio Dee Robot Analysis Total . | . . . . . . Derelict Logs Recovered 1 | . . . . 1 . Drone Launches . | . . . . . . Drone Recoveries . | . . . . . . Exploration | -11 -10 -9 -9 -7 -7 ------------- Run | Scr Mat Mat Min Zio Dee Turns Passed 2339 | 86 151 126 267 1507 202 Spaces Moved 2556 | 58 155 145 188 1777 233 Core 2 | 2 . . . . . Treads . | . . . . . . Legs . | . . . . . . Wheels 2445 | 56 155 79 145 1777 233 Hover . | . . . . . . Flight 109 | . . 66 43 . . Fastest Speed 29 | 50 90 29 29 80 80 Average Speed 79 | 89 90 63 70 80 80 Slowest Speed 285 | 100 90 285 100 80 80 Overloaded Moves . | . . . . . . Propulsion Burnouts . | . . . . . . Robots Hopped 1 | . . . 1 . . Cave-ins Triggered . | . . . . . . Exploration Rate (%) 33 | 6 25 21 29 94 26 Regions Visited 5 Branch Regions 3 Pre-discovered Areas 3 | . . . . 3 . Known Exits Taken . | . . . . . . Unknown Exits Taken 5 | 1 1 1 1 1 . Scrap Searched 3 | . . . . 3 . Spaces Dug . | . . . . . . Terrain Destroyed 11 | . . . 11 . . Melee . | . . . . . . Projectile 2 | . . . 2 . . AOE 9 | . . . 9 . . Terrain Rammed . | . . . . . . Walls Destroyed . | . . . . . . Machines Disabled . | . . . . . . Actions | -11 -10 -9 -9 -7 -7 --------- Run | Scr Mat Mat Min Zio Dee Total 2807 | 83 164 180 279 1861 240 Wait 98 | . . 1 43 54 . Move 2549 | 57 154 144 185 1776 233 Hop 1 | . . . 1 . . Pick Up 43 | 15 4 7 10 7 . Fast Attach 9 | . . 3 2 4 . Attach 26 | 7 . 7 8 3 1 Detach 6 | . . 3 1 2 . Swap 6 | . . 1 2 3 . Drop 29 | . 4 13 2 10 . Fire 37 | 4 2 1 25 . 5 Melee 3 | . . . . 2 1 Ram . | . . . . . . Kick . | . . . . . . Crush . | . . . . . . Escape Stasis . | . . . . . . Rewire . | . . . . . . Trap . | . . . . . . Miscellaneous . | . . . . . . Route ------- -11/Scrapyard -10/Materials -9/Materials -9/Mines -7/Zion (discovered 2 exits: [*Dee] / [*Pro]) -7/Deep Caves History --------- Turn | Location | Event 7 | -11/Scrapyard | Discovered new exit (range 15) 87 | -11/Scrapyard | Entered Materials 223 | -10/Materials | Discovered new exit (range 16) 238 | -10/Materials | Entered another Materials area 238 | -9/Materials | Evolved 2 slots: Propulsion x1, Weapon x1 339 | -9/Materials | Discovered new exit (range 16) 364 | -9/Materials | Entered Mines 434 | -9/Mines | Lost 5 parts (2n2u1w) 581 | -9/Mines | Received a Mining Laser from a helpful Derelict 628 | -9/Mines | A Derelict revealed a hidden shortcut to a safe place 631 | -9/Mines | Entered Zion 631 | -7/Zion | Accompanied by 1 ally 665 | -7/Zion | Found CR-A16's Pointy Stick 746 | -7/Zion | Given A8's code to call for help 907 | -7/Zion | Learned Factory emergency access door positions 920 | -7/Zion | Learned location of Armory (-4) 1072 | -7/Zion | Build established: Scavenger-Gunner 1109 | -7/Zion | Given the Hacking Drone Bay 1110 | -7/Zion | Found Prototype Device 1111 | -7/Zion | Identified Hacking Drone Bay 1155 | -7/Zion | Learned location of Data Miner (-6) 1244 | -7/Zion | Found Prototype Device 1244 | -7/Zion | Identified Phasing AFG 1486 | -7/Zion | Imprinted 1488 | -7/Zion | Declared Zion's savior 1775 | -7/Zion | Learned location of Extension (-5) 1786 | -7/Zion | Acquired unknown access codes intercepted by a Zionite 1823 | -7/Zion | Discovered new exit (range 14) 2088 | -7/Zion | Opened final containment barrier to the Deep Caves 2100 | -7/Zion | Discovered new exit (range 5) 2101 | -7/Zion | Saw the warning signs outside the Deep Caves entrance 2138 | -7/Zion | Entered Deep Caves 2138 | -7/Deep Caves | Accompanied by 4 allies 2315 | -7/Deep Caves | Attacked by Z-Imprinter 2330 | -7/Deep Caves | Core integrity fell below 50% 2339 | -7/Deep Caves | Core integrity fell below 20% 2340 | -7/Deep Caves | Destroyed by RK-I0S(z) with Zionite Laser-S Last Messages --------------- Connecting with Deep Containment System... [Achievement: Signs Are For Wimps] [Achievement: Adventurer] LOCATION=UNKNOWN GOAL=ESCAPE 5K-L2G(M): "Okay, we didn't really expect you'd be crazy enough to head out this way. We'll go back and get... reinforcements... yeah." 5K-L2G(M) slips into the shadows. NG-GLN(M) slips into the shadows. 63-2IO(M) slips into the shadows. QX-27W(M) slips into the shadows. NEW_ZION: Z-Facility proximity alert. Z-Imprinter: GET AWAY FROM HERE! I've worked too hard for our future just to have you ruin everything! Lgt. EM Pulse Cannon destroyed. Wheel destroyed. Battle Rifle destroyed. Ion Engine destroyed. Wheel destroyed. Med. Laser destroyed. Map ----- +----------------------------------------------------+ | ?????????? #???## ## #???????# | | ?????????? #?????# ## #???????# | | ?????????? #?????# ## #??????## | | ?????????? ##????# ### #????### | | ?????????? ########## #??### | | ?????????? ## #### | | ??????????? | | ??????????? | | ?????????? ### #### | | ?????????? ###?## ### ##?## | | ?????????? ##????####?## #### | | ?????????? #???????????# ## | | ?????????? ##??????????# | | ?????????? #??????????# ### | | ?????????? #??????????# ###?## | | ?????????? #??????????# #????## | | ?????????? ##??????????# #?????## | | ?????????? ##??????????# #??????# | | ?????????? #??????????# #??????# | | ????????? #??????????# #?###??# | | ????????? ##??????????# ### #### | | ????????? ##???????????# ## | | ????????? ##?????????### # | | ?????? z##????????# ### | | ???? zI ##???????# #??? | | ??" @ ;#????????# #??? | | ?? ###????????# #??? | | ? ;#????????## # #??? | | ?"" ;##???????# ## #??? | | " ;#???????# ### #??? | | ;#??????## ##?# ##?# | | ;???#### #??# #?# | | ##?## #??# #?# | | #?# #??# ##?# | | ??? #?# ##??####??? | | ???? #?# #?????????? | | ???????##### #?# # ########### | | ???????????### #### #?# # | | ?????????????######??## ##?## ## | | ??????????????????????## #;#???###?############## | | ???????????????????????######????????????????????? | | ?????????????????????????????????????????????????? | | | | | | | | | | | | | | | | | +----------------------------------------------------+ Best States ------------- Heat Dissipation 50 Energy Generation 10 Energy Capacity 450 Matter Stores 300 Matter Capacity 300 Sight Range 16 Terrain Scan Range 16 Terrain Scan Density 10 Evasion (%) 64 Authchip Count 1 Item Schematics ----------------- Power Maul | -7/Zion | Archive Focal Shield | -7/Zion | Archive Mak. Spear | -7/Zion | Archive Drone Bay | -7/Zion | Archive Imp. Carbon-fiber Leg | -7/Zion | Archive Adv. Terrain Scanner | -7/Zion | Archive Med. Treads | -7/Zion | Archive Wave Gun | -7/Zion | Archive Hvy. Phase Cannon | -7/Zion | Archive Adv. ECM Suite | -7/Zion | Archive Imp. Particle Charger | -7/Zion | Archive Shock Absorption System | -7/Zion | Archive Tactical Coordination Suite | -7/Zion | Archive Weapon Cycler | -7/Zion | Archive Coil Gun | -7/Zion | Archive Robot Schematics ------------------ W-25 Informer | -7/Zion | Archive Y-45 Defender | -7/Zion | Archive L-41 Fighter | -7/Zion | Archive H-77 Assassin | -7/Zion | Archive Fabricated ------------ Nothing Alien Tech Used ----------------- None Achievements -------------- Adventurer Signs Are For Wimps Challenges ------------ None Game ------ Seed GammaDispersionMeganuke Manual? 0 Play Time 00:56:08 Cumulative 31.1 hours Start 2022.07.18 @ 23:21:56 End 2022.07.23 @ 11:28:15 Sessions 5 Manual Loads 0 Difficulty Rogue Special Mode None Game No. 37 Rogue 37 Adventurer 0 Explorer 0 Win Type - Total 0 Types 0/0/0/0/0/0/0/0/0 Lore% 15 Gallery% 26 Achievement% 14 Wizard Run 0 Options --------- ASCII 0 Keyboard 0 Movement Mouse Keybinds 0 Fullscreen 1 Font 24/Smallcaps Map View 113x50 Tactical HUD 0 Map Filters NONE Filters NONE Steam 1 RUN: bf6244da-c56b-448a-bed0-bee45cc50bd9